bitfinex/quotes_ETHUSD_20241129
["timestamp","ask_amount","ask_price","bid_price","bid_amount"]
[1732846924979,0.25948471,3587.4,3587.2,0.03894628]
[1732846925137,0.25948471,3587.3,3587.2,0.03894628]
[1732846925586,0.25948471,3587.5,3586.4,3.27128798]
[1732846925753,0.25948471,3587.4,3587.2,0.03894628]
[1732846925947,0.26003479,3587.6,3587.1,2.7877]
[1732846926282,0.26003479,3587.5,3587.3,0.03892652]
[1732846926449,0.26003479,3587.5,3585.1,2.7893]
[1732846926450,2.78777,3587.1,3585.9,2.78869]
[1732846926636,0.7963,3587.2,3585.9,2.78869]
[1732846926637,3.04787479,3587.0,3585.9,2.78869]
[1732846926832,0.7963,3587.2,3585.7,0.56019532]
[1732846926833,0.67930582,3586.9,3586.0,0.03892652]
[1732846927037,2.78815,3586.7,3586.0,0.03892652]
[1732846927340,0.67609045,3586.6,3585.8,2.78871]
[1732846927673,0.67609045,3586.5,3585.9,2.80939355]
[1732846927880,0.26003479,3586.4,3585.9,2.80939355]
[1732846928170,0.41605566,3586.6,3585.3,1.18204516]
[1732846928171,0.26003479,3586.3,3586.0,0.03762831]
[1732846928373,0.67609045,3586.2,3586.0,0.03762831]
[1732846928537,0.26003479,3586.1,3585.8,2.78875]
[1732846928737,0.26003479,3586.0,3585.9,2.80939388]
[1732846928943,0.26003479,3586.0,3585.9,2.78867]
[1732846929277,0.41739833,3586.7,3586.2,2.78843]
[1732846929480,0.26087303,3586.6,3586.2,2.78843]
[1732846929684,0.41739651,3586.5,3586.2,2.78843]
[1732846929840,0.67826933,3586.4,3586.2,2.78843]
[1732846930039,0.26087282,3586.3,3586.2,2.78843]
[1732846930362,0.26087282,3586.3,3586.2,3.34614]
[1732846930541,0.26087303,3586.6,3586.2,3.34614]
[1732846930737,0.26085923,3586.5,3586.2,0.55771]
[1732846930944,0.26087303,3586.6,3586.3,2.78837]
[1732846930945,0.26085923,3586.4,3586.3,2.78837]
[1732846931489,0.26085923,3586.4,3586.0,2.78861]
[1732846931637,0.26085923,3586.3,3586.1,2.78851]
[1732846931838,0.26085923,3586.2,3586.1,2.78851]
[1732846932942,0.26087303,3586.6,3586.1,2.78851]
[1732846932943,0.26087303,3586.6,3586.5,2.78823]
[1732846933148,0.52172761,3586.6,3586.5,2.78823]
[1732846933342,0.52171116,3586.6,3586.5,3.400891]
[1732846933659,0.26087303,3586.6,3586.5,4.60210055]
[1732846933977,0.26087303,3586.6,3586.5,4.581391]
[1732846934187,0.26087303,3586.6,3586.3,2.78838]
[1732846934678,0.26083158,3586.5,3586.3,2.78837]
[1732846934979,0.26087303,3586.6,3586.3,2.78837]
[1732846935197,0.26084355,3586.5,3586.3,2.78837]
[1732846935987,0.26087303,3586.6,3586.3,2.78837]
[1732846936486,0.26087303,3586.6,3586.2,2.78845]
[1732846936981,0.26087303,3586.6,3586.0,3.346357]
[1732846937187,0.26087303,3586.6,3586.1,2.78853]
[1732846937385,0.26087303,3586.6,3586.1,0.6765617]
[1732846937587,0.26087303,3586.6,3586.5,2.78823]
[1732846937795,0.8006,3587.1,3586.5,2.78823]
[1732846937962,0.26086603,3586.6,3586.5,2.78823]
[1732846938290,0.67825169,3587.0,3586.7,2.78804]
[1732846938477,0.41738566,3587.3,3586.7,2.78804]
[1732846938678,0.67826021,3587.2,3586.7,2.78804]
[1732846938900,0.67826021,3587.1,3586.2,0.6305]
[1732846939100,2.78792,3586.9,3586.3,2.78836]
[1732846939306,2.78808,3586.7,3585.9,3.41916]
[1732846939501,0.26087455,3586.6,3586.0,2.78861]
[1732846939704,0.26087455,3586.5,3586.0,2.78861]
[1732846939915,0.26087455,3586.4,3586.0,2.78861]
[1732846940100,0.26087455,3586.3,3586.0,2.78861]
[1732846940292,0.26087455,3586.2,3586.1,2.78854]
[1732846940508,0.26089999,3586.5,3586.2,2.7884]
[1732846940681,0.26090707,3586.4,3586.1,0.0353714]
[1732846940879,0.26090707,3586.3,3585.9,2.78863]
[1732846941115,0.26090707,3586.2,3586.0,0.0353714]
[1732846941415,0.41738566,3586.6,3586.0,2.8239814]
[1732846941575,0.26098247,3586.5,3586.0,0.0353714]
[1732846941780,0.26098296,3586.4,3586.0,0.0353714]
[1732846942013,0.26098296,3586.3,3586.0,0.0353714]
[1732846942219,0.26098296,3586.2,3585.8,5.5775]
[1732846942389,0.41757275,3586.4,3586.1,0.0353714]
[1732846942582,0.41757275,3586.4,3585.8,2.78875]
[1732846942583,0.2610097,3586.3,3585.8,2.78875]
[1732846942777,0.2610097,3586.2,3585.9,2.78868]
[1732846943012,0.2610097,3586.1,3585.9,2.78868]
[1732846943225,0.41757275,3586.5,3585.9,2.78868]
[1732846943519,3.46691094,3586.4,3585.7,2.78885]
[1732846943689,0.787,3586.2,3585.5,3.4195]
[1732846943896,0.26100819,3586.1,3585.5,2.789]
[1732846944105,0.26100819,3586.0,3585.5,2.789]
[1732846944285,0.26100819,3585.9,3585.6,2.78891]
[1732846944621,0.787,3586.2,3585.7,2.80956677]
[1732846944822,0.26100085,3586.1,3585.7,2.80951677]
[1732846944982,0.26100085,3586.0,3585.7,2.80951677]
[1732846945317,0.787,3586.2,3585.7,2.80951677]
[1732846945525,0.2609904,3586.1,3585.7,2.80951677]
[1732846945701,0.2609904,3586.0,3585.7,3.40294246]
[1732846946019,0.787,3586.2,3585.7,3.40294246]
[1732846946188,0.26098439,3586.1,3585.7,3.40294246]
[1732846946403,0.41758472,3586.4,3585.8,0.6305]
[1732846946733,0.26097086,3586.3,3586.1,2.78852]
[1732846946930,0.26097086,3586.2,3585.9,2.94672726]
[1732846947097,0.26097086,3586.1,3585.9,2.94672726]
[1732846947292,0.41758472,3586.5,3585.9,2.94672726]
[1732846947526,0.26096313,3586.4,3585.9,2.94672726]
[1732846947744,0.41758472,3586.8,3586.3,2.78838]
[1732846948032,0.26093858,3586.7,3586.6,2.78809]
[1732846948903,0.41745599,3587.0,3586.7,2.78805]
[1732846949111,0.41745599,3587.3,3586.7,2.78805]
[1732846949311,0.67835431,3587.2,3586.7,2.78805]
[1732846949542,0.67835431,3587.1,3586.6,2.78815]
[1732846949825,0.67835431,3587.0,3586.7,2.78807]
[1732846949993,0.26089832,3586.9,3586.8,2.78792]
[1732846950407,0.41745599,3587.6,3587.0,2.78778]
[1732846950634,0.55,3587.4,3586.6,2.78812]
[1732846950803,0.67832637,3587.3,3586.6,2.78812]
[1732846951140,0.67832637,3587.2,3586.6,2.78812]
[1732846951342,0.26087038,3587.1,3586.6,2.78812]
[1732846951565,0.26087038,3587.0,3586.4,3.41881]
[1732846951759,2.78768,3587.3,3586.4,2.78831]
[1732846951760,1.05307038,3586.9,3586.4,2.78831]
[1732846952058,2.78768,3587.3,3586.5,2.78821]
[1732846952059,0.26087038,3586.8,3586.5,2.78821]
[1732846952256,0.26087038,3586.7,3586.5,2.78821]
[1732846952458,3.20513021,3587.2,3586.5,2.78821]
[1732846952618,2.78772,3587.2,3586.5,2.78821]
[1732846952822,0.67829047,3587.1,3586.5,2.78821]
[1732846953130,0.26088095,3587.0,3586.5,2.78821]
[1732846953459,0.26088095,3586.9,3586.6,2.80886027]
[1732846953760,2.78756,3587.4,3586.7,3.41857]
[1732846953935,1.95374707,3587.6,3586.5,2.7882]
[1732846953936,0.71310849,3587.3,3586.5,2.7882]
[1732846954140,0.7826,3587.1,3586.3,0.6305]
[1732846954338,0.67826429,3587.0,3586.3,0.6305]
[1732846954648,0.67826429,3586.9,3586.3,3.41886]
[1732846954849,0.26085477,3586.8,3586.3,2.78836]
[1732846955054,0.26085477,3586.7,3586.3,2.78836]
[1732846955366,0.26085477,3586.6,3586.4,2.8231178]
[1732846955523,0.41740952,3587.0,3586.5,2.78823]
[1732846955718,0.67832725,3586.9,3586.5,3.17251128]
[1732846955939,0.41740952,3587.2,3586.8,2.788]
[1732846956134,0.26089541,3587.1,3586.6,0.66537733]
[1732846956464,0.41740952,3587.3,3587.1,2.78769]
[1732846956759,0.26090791,3587.2,3586.9,2.78788]
[1732846957054,0.26090791,3587.1,3586.8,2.78792]
[1732846957260,0.26090791,3587.0,3586.8,2.78792]
[1732846957567,0.26090791,3586.9,3586.8,2.788]
[1732846957920,0.26090791,3586.9,3586.8,3.408665]
[1732846958176,0.41740952,3587.7,3587.0,2.78784]
[1732846958464,0.67825466,3587.6,3587.0,2.78784]
[1732846958633,0.7778,3587.8,3586.4,2.7883]
[1732846958634,1.48985466,3587.5,3586.4,2.7883]
[1732846958833,2.8020872,3587.4,3586.4,2.7883]
[1732846959145,0.71310321,3587.3,3586.4,2.7883]
[1732846959457,1.22825466,3587.2,3586.2,3.41895]
[1732846959672,1.3616,3587.0,3586.2,2.78845]
[1732846959961,3.04878514,3586.9,3586.2,2.78845]
[1732846960136,0.26084514,3586.8,3586.2,2.78845]
[1732846960462,0.26084514,3586.7,3586.2,2.78845]
[1732846960761,0.26084514,3586.6,3586.0,0.02071411]
[1732846960919,0.26084514,3586.9,3586.0,0.02071411]
[1732846961258,1.3616,3587.0,3586.5,2.78819]
[1732846961259,0.26084514,3586.8,3586.5,2.78819]
[1732846961421,0.26084514,3586.7,3586.5,2.78819]
[1732846961625,0.26084514,3586.9,3586.5,2.78819]
[1732846961855,1.3616,3587.0,3586.6,2.78815]
[1732846961856,0.26084514,3586.8,3586.6,2.78815]
[1732846962060,0.26091477,3586.9,3586.6,2.78815]
[1732846962353,0.26091477,3586.8,3586.6,2.78815]
[1732846962557,0.26091477,3586.7,3586.4,2.80896267]
[1732846962761,0.26091477,3586.9,3586.4,2.80896267]
[1732846962927,0.26091477,3586.8,3586.4,2.80896267]
[1732846963266,1.3616,3587.0,3586.5,2.78823]
[1732846963437,0.26092481,3586.9,3586.5,2.78823]
[1732846963636,0.26092481,3586.8,3586.5,2.78823]
[1732846963855,0.26092481,3586.9,3586.5,2.78823]
[1732846964166,0.26092481,3586.8,3586.6,2.78814]
[1732846964459,0.26094351,3586.9,3586.6,2.78808]
[1732846964679,0.26094351,3586.8,3586.6,2.78808]
[1732846964961,0.26094351,3586.9,3586.6,2.78808]
[1732846965197,0.26094351,3586.8,3586.6,2.78808]
[1732846965358,0.26094351,3586.9,3586.6,2.78808]
[1732846965559,0.26094351,3586.8,3586.6,2.78808]
[1732846965858,0.26094351,3586.9,3586.4,2.78827]
[1732846966163,0.26094343,3586.8,3586.3,2.78831]
[1732846966329,0.8116,3587.0,3586.3,2.78831]
[1732846966531,0.26095218,3586.7,3586.3,2.78831]
[1732846966730,0.26095218,3586.9,3586.3,2.78831]
[1732846966952,0.26095218,3586.8,3586.3,2.78831]
[1732846967151,0.26095218,3586.7,3586.3,2.78831]
[1732846967363,0.26095218,3586.6,3586.3,2.78831]
[1732846967561,3.63435866,3587.0,3586.3,2.78831]
[1732846967863,1.0612656,3586.9,3586.3,2.78831]
[1732846968063,0.26098044,3586.8,3586.3,2.78831]
[1732846968271,0.26098044,3586.7,3586.3,2.78831]
[1732846968451,0.26098044,3586.9,3586.3,2.78831]
[1732846968630,0.26098044,3586.8,3586.3,2.78831]
[1732846968828,0.26098044,3586.7,3586.3,2.78831]
[1732846969036,3.63432866,3587.0,3586.3,2.78831]
[1732846969037,0.26098044,3586.9,3586.3,2.78831]
[1732846969275,0.26098044,3586.8,3586.3,2.78831]
[1732846969455,0.26098044,3586.9,3586.3,2.78831]
[1732846969661,0.26098044,3586.8,3586.3,2.78831]
[1732846969866,0.26098044,3586.9,3586.3,2.78831]
[1732846970187,0.26098044,3586.8,3586.3,2.78831]
[1732846970468,3.59948,3587.0,3586.4,0.03465662]
[1732846970469,0.26098044,3586.7,3586.4,0.03465662]
[1732846970632,0.26098044,3586.9,3586.4,0.03465662]
[1732846970840,0.26098044,3586.8,3586.3,2.78831]
[1732846971030,0.41752586,3587.1,3586.3,2.78831]
[1732846971031,0.26098044,3586.9,3586.5,0.03465662]
[1732846971230,0.26098044,3587.0,3586.5,2.78817]
[1732846971539,0.26098044,3587.2,3586.6,0.68587074]
[1732846971738,0.55,3587.5,3586.7,5.57614]
[1732846971953,0.26098044,3587.4,3586.8,0.02070443]
[1732846972161,0.26098044,3587.7,3587.3,2.78757]
[1732846972368,0.26098044,3587.6,3587.3,2.78757]
[1732846972549,0.26098044,3587.9,3587.3,2.78757]
[1732846972747,0.26098044,3587.8,3587.4,0.03457099]
[1732846972979,0.26098044,3587.7,3587.3,2.78757]
[1732846973179,3.60327,3588.0,3587.1,2.78776]
[1732846973180,0.26098044,3587.6,3587.5,0.03457099]
[1732846973482,0.8162,3588.0,3587.4,2.78752]
[1732846973483,0.55,3587.9,3587.4,2.78752]
[1732846973772,0.26085539,3587.8,3587.5,0.03457099]
[1732846973980,1.08164371,3587.9,3587.5,0.03457099]
[1732846973981,0.26085539,3587.7,3587.5,0.03457099]
[1732846974278,0.26085539,3587.8,3587.5,0.03457099]
[1732846974574,0.26085539,3587.7,3587.5,0.03457099]
[1732846974737,0.26085539,3587.8,3587.5,0.03457099]
[1732846974939,0.26085539,3587.7,3587.6,2.78737]
[1732846975270,0.26085539,3587.9,3587.8,2.78722]
[1732846975438,0.26085539,3588.4,3588.1,2.78696]
[1732846975777,0.26085539,3588.3,3588.2,0.0343866]
[1732846976278,0.26085539,3588.7,3588.2,0.0343866]
[1732846976488,0.26085539,3588.6,3588.2,0.0343866]
[1732846976828,0.71649042,3588.7,3588.2,0.0343866]
[1732846976829,0.26085539,3588.5,3588.2,0.0343866]
[1732846976955,0.26066494,3588.5,3588.2,0.0343866]
[1732846977155,0.26066494,3588.4,3588.2,0.0343866]
[1732846977356,0.26066494,3588.5,3587.9,2.78712]
[1732846977666,0.81066494,3588.4,3588.3,0.03402111]
[1732846977871,1.12686408,3588.6,3588.1,2.78692]
[1732846978189,0.26066494,3588.5,3588.3,2.78682]
[1732846978502,2.78668,3588.5,3588.2,0.03394211]
[1732846978688,2.78668,3588.5,3587.7,2.78729]
[1732846978689,0.29550143,3588.4,3587.7,2.78729]
[1732846978997,3.04753494,3588.3,3587.5,2.78745]
[1732846979299,0.55,3587.9,3587.8,0.03393881]
[1732846979591,0.55,3587.9,3587.2,2.78767]
[1732846979592,0.99007949,3587.9,3587.2,2.78767]
[1732846979889,1.25074443,3587.9,3587.3,2.7876]
[1732846980254,1.25074443,3587.9,3587.4,0.03393881]
[1732846980424,2.82207171,3587.8,3587.4,0.03393881]
[1732846980564,3.59796494,3587.7,3587.4,0.03393881]
[1732846980764,0.26066494,3587.6,3587.0,2.78783]
[1732846980966,0.26066494,3587.6,3587.5,0.03406061]
[1732846981264,0.55,3587.3,3586.4,0.6305]
[1732846981469,3.59828494,3587.3,3586.6,2.78814]
[1732846981701,3.33762,3587.3,3586.6,2.78814]
[1732846982065,0.41687018,3587.5,3587.0,2.7878]
[1732846982300,0.55,3587.5,3587.0,2.7878]
[1732846982502,0.55,3587.5,3587.1,0.03422195]
[1732846982804,0.81053132,3587.5,3586.8,2.78798]
[1732846983106,0.55,3587.5,3587.2,0.03422524]
[1732846983303,0.714118,3587.4,3586.8,2.78798]
[1732846983501,1.264118,3587.4,3587.3,0.03422524]
[1732846983708,1.52465804,3587.4,3586.7,2.78801]
[1732846983914,0.26054004,3587.3,3586.8,2.788]
[1732846984114,0.26054004,3587.2,3586.8,2.82221536]
[1732846984318,0.26054004,3587.1,3586.8,2.82221536]
[1732846984489,1.264118,3587.4,3586.8,2.82221536]
[1732846984490,0.26054004,3587.3,3586.8,2.82221536]
[1732846984813,0.26054004,3587.2,3586.8,2.82221536]
[1732846985119,1.264118,3587.4,3586.8,2.82221536]
[1732846985120,0.26054004,3587.1,3586.8,2.82221536]
[1732846985422,1.3664,3587.2,3586.8,0.03421536]
[1732846985588,0.26054004,3587.1,3586.8,0.03421536]
[1732846985787,1.3664,3587.2,3586.5,2.78823]
[1732846985788,0.26054004,3587.0,3586.5,2.78823]
[1732846985988,0.26054004,3586.9,3586.5,2.78823]
[1732846986189,0.26056858,3587.1,3586.6,2.78815]
[1732846986390,0.26056858,3587.0,3586.6,2.78815]
[1732846986699,0.26056858,3586.9,3586.4,2.78829]
[1732846986899,0.26056858,3587.0,3586.4,5.57658]
[1732846987222,0.26056858,3586.9,3586.5,2.78822]
[1732846987427,1.78330973,3587.2,3586.2,3.33585566]
[1732846987428,0.26056858,3587.1,3586.2,3.33585566]
[1732846987764,1.0976789,3587.0,3586.2,2.78846]
[1732846988022,0.26056858,3586.9,3586.3,2.78838]
[1732846988210,0.26056858,3586.8,3586.3,2.78838]
[1732846988384,0.26056858,3586.7,3586.3,2.78838]
[1732846988579,0.26056858,3586.9,3586.3,2.78838]
[1732846988817,0.26056858,3586.8,3586.3,2.78838]
[1732846989122,0.26056858,3586.7,3586.3,2.78838]
[1732846989292,0.26056858,3586.9,3586.3,2.78838]
[1732846989482,3.33787,3587.0,3586.3,2.78838]
[1732846989483,0.26056858,3586.8,3586.3,2.78838]
[1732846989686,0.26056858,3586.9,3586.3,2.78838]
[1732846989993,0.26056858,3586.8,3586.1,0.55383155]
[1732846990314,3.8112,3586.4,3585.6,0.01349049]
[1732846990514,0.55,3586.2,3585.6,0.01349049]
[1732846990691,0.26056858,3586.1,3585.6,0.01349049]
[1732846991717,2.78872,3585.9,3585.6,0.01349049]
[1732846991888,1.366,3585.8,3585.6,0.01349049]
[1732846992421,1.62642714,3585.8,3585.6,0.01349049]
[1732846992629,1.62642747,3585.8,3585.6,0.01349049]
[1732846992811,1.366,3585.8,3585.6,0.01349049]
[1732846993009,1.62642916,3585.8,3585.6,0.01349049]
[1732846993313,1.366,3585.8,3585.6,0.01349049]
[1732846993517,2.7884,3586.3,3585.6,0.01349049]
[1732846993699,0.55,3586.1,3585.6,0.01349049]
[1732846994030,0.81031229,3586.1,3585.7,0.0306068]
[1732846994533,2.78863,3586.0,3585.7,0.0306068]
[1732846994726,0.26031229,3585.9,3585.7,0.0306068]
[1732846995028,3.33877,3585.8,3585.7,0.0306068]
[1732846995380,3.33877,3585.8,3585.6,0.01349049]
[1732846995381,2.00675923,3585.8,3585.6,0.01349049]
[1732846995545,6.63402373,3585.7,3585.6,0.01349049]
[1732846995747,6.59916229,3585.7,3585.6,0.01349049]
[1732846996059,6.59916229,3585.7,3585.6,0.04409071]
[1732846996243,6.59916229,3585.7,3585.6,0.01349049]
[1732846996581,6.89047129,3585.7,3585.6,0.01349049]
[1732846996877,6.8901899,3585.7,3585.6,0.04409071]
[1732846997043,6.8901899,3585.7,3585.6,0.01349049]
[1732846997239,6.8901899,3585.7,3585.6,0.04409071]
[1732846997440,6.8901899,3585.7,3585.6,0.01349049]
[1732846997890,6.89007788,3585.7,3585.6,0.01349049]
[1732846998373,7.14999622,3585.7,3585.6,0.01349049]
[1732846999171,6.89007788,3585.7,3585.6,0.01349049]
[1732846999352,6.89000431,3585.7,3585.6,0.01349049]
[1732846999554,6.630159,3585.7,3585.6,0.01349049]
[1732846999752,6.8899435,3585.7,3585.6,0.01349049]
[1732846999998,6.88994485,3585.7,3585.6,0.01349049]
[1732847000561,0.7569,3586.2,3585.6,0.01349049]
[1732847000878,0.7569,3586.2,3585.6,2.80239049]
[1732847001086,0.7569,3586.2,3585.8,2.78872]
[1732847001087,1.01655073,3586.2,3585.8,2.78872]
[1732847001400,0.03485702,3586.1,3585.6,0.01349049]
[1732847001583,2.78858,3586.1,3585.6,0.01349049]
[1732847001772,2.78858,3586.1,3585.7,0.03104461]
[1732847002161,3.5453,3586.3,3585.7,0.03104461]
[1732847002378,0.55,3586.2,3585.7,0.03104461]
[1732847003179,0.7569,3586.3,3585.7,3.44724308]
[1732847003386,3.0,3586.4,3585.9,2.78869]
[1732847003583,0.7569,3586.6,3585.9,2.78869]
[1732847003758,3.7569,3586.6,3585.9,2.78863]
[1732847003966,6.57996427,3586.6,3586.0,0.03093596]
[1732847004188,3.0,3586.4,3586.0,0.03093596]
[1732847004394,1.69370443,3586.6,3585.9,2.78868]
[1732847004578,0.55,3586.5,3586.1,0.03086024]
[1732847004868,2.7884,3586.3,3585.6,2.80242049]
[1732847005086,2.78855,3586.1,3585.6,0.01349049]
[1732847005308,0.55,3586.0,3585.7,0.03086353]
[1732847005602,3.0,3586.4,3585.7,2.81970353]
[1732847006184,3.0,3586.4,3585.8,2.78877]
[1732847006385,0.55,3586.5,3585.9,2.78864]
[1732847006597,0.80981519,3586.5,3585.9,2.78864]
[1732847006985,0.80981519,3586.5,3586.0,0.02972189]
[1732847007186,3.0,3586.4,3585.7,2.78881]
[1732847007402,0.25981519,3586.3,3586.1,0.02972518]
[1732847007571,0.25981519,3586.3,3585.7,2.78881]
[1732847007770,0.25981519,3586.3,3586.2,0.02972518]
[1732847008005,5.78834,3586.4,3585.7,2.78881]
[1732847008206,2.78862,3586.0,3585.6,0.01349049]
[1732847008391,0.55,3585.9,3585.6,0.01349049]
[1732847010069,0.81017695,3585.9,3585.6,0.01349049]
[1732847012019,1.3426,3585.7,3585.6,0.01349049]
[1732847012185,4.13145,3585.7,3585.6,0.01349049]
[1732847012394,7.82695104,3585.7,3585.6,0.01349049]
[1732847012712,8.50398593,3585.7,3585.6,0.01349049]
[1732847014393,2.71513593,3585.7,3585.6,0.01349049]
[1732847014728,1.60299803,3585.7,3585.6,0.04343628]
[1732847014895,4.80848489,3585.7,3585.6,0.01349049]
[1732847015097,4.80882293,3585.7,3585.6,0.01349049]
[1732847015296,4.80882293,3585.7,3585.6,0.04383143]
[1732847015514,4.80882293,3585.7,3585.6,0.01349049]
[1732847016190,5.86856722,3585.7,3585.6,0.01349049]
[1732847016527,3.07971722,3585.7,3585.6,0.01349049]
[1732847016939,2.01997293,3585.7,3585.6,0.0437458]
[1732847017143,4.80882293,3585.7,3585.6,0.01349049]
[1732847017343,4.39197805,3585.7,3585.6,0.0437458]
[1732847017496,4.39197805,3585.7,3585.6,0.01349049]
[1732847018009,5.15173134,3585.7,3585.6,0.0437458]
[1732847018611,8.15173134,3585.7,3585.6,0.0437458]
[1732847018799,8.56857622,3585.7,3585.6,0.0437458]
[1732847018993,0.8226,3585.6,3584.0,0.6305]
[1732847019223,3.33963,3584.7,3584.0,0.6305]
[1732847019425,2.78995,3584.3,3583.7,2.79039]
[1732847019649,0.26052805,3584.2,3584.1,0.0292468]
[1732847019939,0.26052805,3584.2,3583.7,2.79039]
[1732847020302,2.79017,3584.0,3583.3,0.6305]
[1732847020498,0.55,3583.9,3583.3,0.6305]
[1732847020744,0.81082882,3584.1,3583.4,2.8198868]
[1732847021042,4.3200547,3584.1,3583.4,2.8198868]
[1732847021245,1.26909588,3584.1,3583.4,2.8198868]
[1732847021397,1.52975232,3584.1,3583.4,0.0292468]
[1732847021849,1.26909588,3584.1,3583.4,0.0292468]
[1732847022144,2.79056,3583.5,3583.4,0.0292468]
[1732847022446,5.44129927,3583.5,3582.3,0.6305]
[1732847022592,0.55,3583.1,3582.4,2.79138]
[1732847022798,0.55,3583.1,3582.4,2.8206268]
[1732847022997,0.55,3583.3,3582.4,0.0292468]
[1732847023239,0.55,3583.3,3582.5,2.79134]
[1732847023438,0.55,3583.3,3582.7,2.79117]
[1732847023439,0.966223,3583.3,3582.7,2.79117]
[1732847023915,0.966223,3583.3,3582.7,0.54970671]
[1732847024102,0.966223,3583.3,3582.8,0.0292468]
[1732847024304,3.756953,3583.3,3582.8,0.0292468]
[1732847024543,0.55,3583.1,3582.7,3.34088671]
[1732847024742,0.9466223,3583.1,3582.9,0.0292468]
[1732847024916,0.9466223,3583.1,3582.7,0.54970671]
[1732847024917,0.9466223,3583.1,3582.8,0.02996516]
[1732847025111,0.9466223,3583.1,3583.0,0.03059789]
[1732847025372,2.79041,3583.7,3583.0,0.03059789]
[1732847025373,4.7988,3585.7,3584.0,0.6305]
[1732847025516,0.25977418,3585.6,3584.3,5.88569238]
[1732847025723,0.7988,3585.7,3585.3,2.78914]
[1732847026047,0.25964288,3586.1,3585.1,2.78932]
[1732847026248,3.58046,3586.2,3585.4,0.03040009]
[1732847026551,0.38401029,3586.1,3585.2,2.7892]
[1732847026751,0.38401029,3586.1,3585.5,0.03021553]
[1732847026915,0.792,3586.2,3585.5,2.78901]
[1732847027251,0.792,3586.2,3585.6,0.03021553]
[1732847028046,0.792,3586.2,3585.3,2.78913]
[1732847028247,0.792,3586.2,3585.7,0.03020235]
[1732847028404,2.78815,3586.7,3585.6,0.6305]
[1732847028611,3.147415,3586.6,3585.8,0.03020235]
[1732847028834,3.147415,3586.6,3585.6,3.41943]
[1732847029025,3.147415,3586.6,3585.9,0.0298005]
[1732847029224,3.147415,3586.6,3585.6,3.41943]
[1732847029508,0.359255,3586.6,3586.0,0.0298005]
[1732847029720,0.359255,3586.6,3585.7,2.78882]
[1732847029924,0.3951735,3586.5,3585.8,2.78877]
[1732847030219,0.55,3586.5,3586.0,2.78861]
[1732847030607,0.55,3586.5,3586.1,0.02968197]
[1732847031245,0.55,3586.5,3585.9,2.78869]
[1732847031543,0.55,3586.5,3585.8,2.78877]
[1732847031544,0.55,3586.5,3586.2,0.02968197]
[1732847031704,0.1713655,3586.5,3586.1,2.78854]
[1732847031907,0.1713655,3586.5,3586.3,0.02968197]
[1732847032107,0.1713655,3586.5,3586.1,2.78854]
[1732847032344,0.1713655,3586.5,3586.4,0.02968197]
[1732847032345,0.7213655,3586.5,3586.4,0.02968197]
[1732847032549,0.7213655,3586.5,3586.1,2.78854]
[1732847033044,0.7213655,3586.5,3586.2,0.02968197]
[1732847033206,2.78762,3587.3,3586.2,0.02968197]
[1732847033207,3.0,3587.2,3586.2,0.02968197]
[1732847033407,0.8168,3587.3,3586.2,0.02968197]
[1732847033408,0.8168,3587.3,3586.2,2.78841]
[1732847033609,0.8168,3587.3,3586.5,2.78822]
[1732847034153,0.8168,3587.3,3586.6,0.02857514]
[1732847034312,0.660427,3587.2,3586.6,0.02857514]
[1732847034704,0.55,3587.1,3586.6,0.02857514]
[1732847038141,3.55,3587.1,3585.9,2.78864]
[1732847038317,0.55,3586.9,3586.7,0.02762263]
[1732847038515,0.55,3586.9,3586.0,2.78855]
[1732847038716,0.55,3586.5,3585.9,2.78862]
[1732847038917,0.55,3586.5,3586.1,0.02759959]
[1732847039243,0.55,3586.5,3586.2,0.02759959]
[1732847039417,0.55,3586.5,3585.9,2.78862]
[1732847039618,0.55,3586.5,3586.3,0.02759959]
[1732847039922,0.63727021,3586.8,3586.6,2.78813]
[1732847040230,0.55,3587.3,3586.7,0.02764568]
[1732847040416,0.55,3587.3,3586.1,0.6305]
[1732847040618,0.55,3587.3,3586.8,0.02764568]
[1732847040853,0.55,3587.3,3586.6,2.78815]
[1732847041153,0.55,3587.3,3586.4,2.7883]
[1732847041154,0.55,3587.3,3586.9,0.02764568]
[1732847041361,0.55,3587.3,3586.7,2.78803]
[1732847041855,0.55,3587.3,3586.8,0.02764568]
[1732847042031,0.55,3587.3,3586.5,2.7882]
[1732847042229,0.55,3587.1,3586.9,0.02764568]
[1732847042413,0.55,3587.1,3586.7,2.78804]
[1732847042619,0.55,3587.3,3587.0,0.02764568]
[1732847042844,0.55,3587.3,3586.5,2.7882]
[1732847043040,0.55,3587.3,3587.1,0.02764568]
[1732847043247,0.55,3587.3,3586.5,2.7882]
[1732847043248,0.55,3587.1,3586.5,2.7882]
[1732847045470,0.55,3587.1,3586.6,0.02749754]
[1732847045764,0.55,3587.3,3586.9,2.78785]
[1732847046324,0.55,3587.3,3587.0,0.02749754]
[1732847046638,0.55,3587.0,3586.1,3.41897]
[1732847046829,0.55,3587.0,3586.1,2.78847]
[1732847047025,0.55,3587.3,3586.3,2.78836]
[1732847047224,0.55,3587.1,3586.4,2.78828]
[1732847047527,0.55,3586.9,3586.2,2.7884]
[1732847048831,0.55,3586.7,3585.7,2.78878]
[1732847049027,0.55,3586.5,3585.7,2.78878]
[1732847049254,0.03485762,3586.4,3585.7,2.78878]
[1732847049654,0.03485762,3586.4,3585.8,2.78876]
[1732847049836,0.55,3586.2,3585.5,2.789]
[1732847050046,0.808,3586.1,3585.5,2.789]
[1732847050240,0.808,3586.1,3585.5,2.78899]
[1732847050555,0.808,3586.1,3585.9,2.7887]
[1732847050930,0.808,3586.1,3585.7,2.78881]
[1732847051131,0.55,3586.2,3585.3,3.09650892]
[1732847051466,0.55,3586.4,3586.1,2.78847]
[1732847052837,0.55,3586.4,3585.3,0.54674025]
[1732847053037,0.55,3586.4,3584.2,0.42931818]
[1732847053038,0.8116,3585.8,3584.7,0.6305]
[1732847053271,0.58486461,3585.7,3584.8,2.78955]
[1732847053581,0.55,3585.7,3585.1,2.78926]
[1732847053937,0.55,3585.7,3585.3,2.78915]
[1732847054137,0.55,3585.7,3585.4,2.78908]
[1732847054360,0.7843,3586.2,3585.4,2.78908]
[1732847054580,0.55,3586.1,3585.4,2.78908]